fUST/lending_fUST_20241215
["ID","MTS","AMOUNT","RATE_DAILY","PERIOD"]
[345460838,1734271853061,-500.0,0.00028219,7]
[345460839,1734271853071,-154.4,0.00028222,6]
[345460840,1734271853081,-154.4,0.00028257,6]
[345460841,1734271853093,-154.38941801,0.00028274,2]
[345460842,1734271853103,-154.4,0.00028292,6]
[345460843,1734271853113,-222.45,0.000283,2]
[345460844,1734271853124,-1000.0,0.00028316,2]
[345460845,1734271853136,-154.4,0.00028327,6]
[345460846,1734271853148,-154.4,0.00028361,6]
[345460847,1734271853158,-965.52739142,0.00028368,2]
[345460848,1734271853168,-154.4,0.00028396,6]
[345460849,1734271853178,-156.61,0.000284,7]
[345460850,1734271853188,-274.43,0.000284,7]
[345460851,1734271853197,-151.0,0.000284,15]
[345460852,1734271853207,-152.73,0.000284,31]
[345460853,1734271853217,-152.73,0.000284,31]
[345460854,1734271853227,-152.73,0.000284,31]
[345460855,1734271853237,-152.73,0.000284,31]
[345460856,1734271853247,-152.73,0.000284,31]
[345460857,1734271853258,-152.73,0.000284,31]
[345460858,1734271853268,-152.73,0.000284,31]
[345460859,1734271853279,-152.73,0.000284,31]
[345460860,1734271853291,-152.73,0.000284,31]
[345460861,1734271853300,-152.73,0.000284,31]
[345460862,1734271853312,-153.95,0.000284,7]
[345460863,1734271853323,-1000.0,0.00028403,2]
[345460864,1734271853336,-154.4,0.00028431,6]
[345460865,1734271853347,-1000.0,0.00028433,2]
[345460866,1734271853357,-154.4,0.00028465,7]
[345460867,1734271853367,-129614.627168,0.0002849,7]
[345460868,1734271853376,-1000.0,0.00028491,2]
[345460869,1734271853385,-500.0,0.00028493,7]
[345460870,1734271853445,-500.0,0.00028493,7]
[345460871,1734271853460,-500.0,0.00028493,7]
[345460872,1734271853470,-500.0,0.00028493,7]
[345460873,1734271853479,-500.0,0.00028493,7]
[345460874,1734271853489,-500.0,0.00028493,7]
[345460875,1734271853498,-503.19049347,0.00028493,7]
[345460876,1734271853508,-500.0,0.00028493,7]
[345460877,1734271853518,-502.37655756,0.00028493,7]
[345460878,1734271853527,-3634.0,0.00028493,2]
[345460879,1734271853536,-3634.0,0.00028493,2]
[345460880,1734271853545,-3634.0,0.00028493,2]
[345460881,1734271853559,-3634.0,0.00028493,2]
[345460882,1734271853568,-3634.0,0.00028493,2]
[345460883,1734271853577,-3634.0,0.00028493,2]
[345460884,1734271853586,-3634.0,0.00028493,2]
[345460885,1734271853596,-3634.0,0.00028493,2]
[345460886,1734271853605,-3634.0,0.00028493,2]
[345460887,1734271853614,-3634.0,0.00028493,2]
[345460888,1734271853625,-500.0,0.00028493,7]
[345460889,1734271853634,-500.0,0.00028493,7]
[345460890,1734271853643,-500.0,0.00028493,7]
[345460891,1734271853653,-500.0,0.00028493,7]
[345460892,1734271853663,-500.0,0.00028493,7]
[345460893,1734271853673,-500.0,0.00028493,7]
[345460894,1734271853682,-503.15029681,0.00028493,7]
[345460895,1734271853691,-500.0,0.00028493,7]
[345460896,1734271853701,-503.49635759,0.00028493,7]
[345460897,1734271853710,-500.0,0.00028493,7]
[345460898,1734271853719,-249.79,0.00028493,7]
[345460899,1734271853728,-500.0,0.00028493,7]
[345460900,1734271853738,-512.10233924,0.00028493,7]
[345460901,1734271853747,-319.46133443,0.00028493,2]
[345460902,1734271853756,-500.0,0.00028493,7]
[345460903,1734271853765,-500.0,0.00028493,7]
[345460904,1734271853775,-500.0,0.00028493,7]
[345460905,1734271853783,-504.60158464,0.00028493,7]
[345460906,1734271853792,-602.05,0.00028493,7]
[345460907,1734271853804,-500.0,0.00028493,7]
[345460908,1734271853813,-500.0,0.00028493,7]
[345460909,1734271853823,-399.66296277,0.00028493,7]
[345460910,1734271853832,-500.0,0.00028493,7]
[345460911,1734271853841,-500.0,0.00028493,7]
[345460912,1734271853850,-500.0,0.00028493,7]
[345460913,1734271853861,-500.0,0.00028493,7]
[345460914,1734271853870,-500.0,0.00028493,7]
[345460915,1734271853880,-500.0,0.00028493,7]
[345460916,1734271853890,-500.0,0.00028493,7]
[345460917,1734271853899,-14591.19,0.00028493,2]
[345460918,1734271853909,-500.0,0.00028493,7]
[345460919,1734271853919,-500.0,0.00028493,7]
[345460920,1734271853928,-500.0,0.00028493,7]
[345460921,1734271853937,-500.0,0.00028493,7]
[345460922,1734271853946,-500.0,0.00028493,7]
[345460923,1734271853956,-500.0,0.00028493,7]
[345460924,1734271853965,-595.06963153,0.00028493,7]
[345460925,1734271853974,-500.0,0.00028493,7]
[345460926,1734271853984,-500.0,0.00028493,7]
[345460927,1734271853995,-500.0,0.00028493,7]
[345460928,1734271854003,-500.0,0.00028493,7]
[345460929,1734271854013,-500.0,0.00028493,7]
[345460930,1734271854023,-500.0,0.00028493,7]
[345460931,1734271854032,-500.0,0.00028493,7]
[345460932,1734271854041,-500.0,0.00028493,7]
[345460933,1734271854051,-505.47956177,0.00028493,7]
[345460934,1734271854060,-500.0,0.00028493,7]
[345460935,1734271854070,-500.0,0.00028493,7]
[345460936,1734271854081,-500.0,0.00028493,7]
[345460937,1734271854091,-500.0,0.00028493,7]
[345460938,1734271854100,-500.0,0.00028493,7]
[345460939,1734271854110,-2516.55,0.00028493,2]
[345460940,1734271854120,-500.0,0.00028493,7]
[345460941,1734271854129,-453.32,0.00028493,7]
[345460942,1734271854139,-500.0,0.00028493,7]
[345460943,1734271854149,-500.0,0.00028493,7]
[345460944,1734271854158,-500.0,0.00028493,7]
[345460945,1734271854168,-500.0,0.00028493,7]
[345460946,1734271854178,-500.0,0.00028493,7]
[345460947,1734271854187,-500.0,0.00028493,7]
[345460948,1734271854196,-500.0,0.00028493,7]
[345460949,1734271854206,-500.0,0.00028493,7]
[345460950,1734271854216,-500.0,0.00028493,7]
[345460951,1734271854225,-500.0,0.00028493,7]
[345460952,1734271854234,-500.0,0.00028493,7]
[345460953,1734271854244,-500.0,0.00028493,7]
[345460954,1734271854258,-500.0,0.00028493,7]
[345460955,1734271854267,-500.0,0.00028493,7]
[345460956,1734271854277,-500.0,0.00028493,7]
[345460957,1734271854287,-600.55870853,0.00028493,7]
[345460958,1734271854298,-500.0,0.00028493,7]
[345460959,1734271854308,-500.0,0.00028493,7]
[345460960,1734271854317,-500.0,0.00028493,7]
[345460961,1734271854328,-500.0,0.00028493,7]
[345460962,1734271854337,-500.0,0.00028493,7]
[345460963,1734271854348,-500.0,0.00028493,7]
[345460964,1734271854357,-500.0,0.00028493,7]
[345460965,1734271854367,-180.57965802,0.00028493,7]
[345460966,1734271854376,-196.4,0.00028493,7]
[345460967,1734271854385,-500.0,0.00028493,7]
[345460968,1734271854395,-500.0,0.00028493,7]
[345460969,1734271854405,-533.3,0.00028493,7]
[345460970,1734271854415,-500.0,0.00028493,7]
[345460971,1734271854424,-184.66,0.00028493,7]
[345460972,1734271854434,-500.0,0.00028493,7]
[345460973,1734271854444,-500.0,0.00028493,7]
[345460974,1734271854454,-500.0,0.00028493,7]
[345460975,1734271854518,-500.0,0.00028493,7]
[345460976,1734271854528,-500.0,0.00028493,7]
[345460977,1734271854539,-500.0,0.00028493,7]
[345460978,1734271854548,-500.0,0.00028493,7]
[345460979,1734271854558,-1439.76,0.00028493,7]
[345460980,1734271854567,-500.0,0.00028493,7]
[345460981,1734271854577,-500.0,0.00028493,7]
[345460982,1734271854587,-513.21,0.00028493,7]
[345460983,1734271854597,-500.0,0.00028493,7]
[345460984,1734271854606,-500.0,0.00028493,7]
[345460985,1734271854616,-864.77,0.00028493,7]
[345460986,1734271854626,-502.98698104,0.00028493,7]
[345460987,1734271854637,-500.0,0.00028493,7]
[345460988,1734271854647,-500.0,0.00028493,7]
[345460989,1734271854656,-500.0,0.00028493,7]
[345460990,1734271854666,-686.05,0.00028493,7]
[345460991,1734271854676,-500.0,0.00028493,7]
[345460992,1734271854685,-500.0,0.00028493,7]
[345460993,1734271854695,-251.98,0.00028493,7]
[345460994,1734271854705,-510.58387369,0.00028493,7]
[345460995,1734271854715,-500.0,0.00028493,7]
[345460996,1734271854724,-500.0,0.00028493,7]
[345460997,1734271854733,-500.0,0.00028493,7]
[345460998,1734271854744,-500.0,0.00028493,7]
[345460999,1734271854754,-500.0,0.00028493,7]
[345461000,1734271854763,-500.0,0.00028493,7]
[345461001,1734271854773,-500.0,0.00028493,7]
[345461002,1734271854783,-500.0,0.00028493,7]
[345461003,1734271854792,-500.0,0.00028493,7]
[345461004,1734271854802,-500.0,0.00028493,7]
[345461005,1734271854811,-500.0,0.00028493,7]
[345461006,1734271854821,-500.0,0.00028493,7]
[345461007,1734271854830,-542.63,0.00028493,7]
[345461008,1734271854840,-565.12,0.00028493,7]
[345461009,1734271854849,-2534.09,0.00028493,7]
[345461010,1734271854859,-518.44160791,0.00028493,7]
[345461011,1734271854868,-474.81702872,0.00028493,7]
[345461012,1734271854878,-500.0,0.00028493,7]
[345461013,1734271854888,-1025.35,0.00028493,7]
[345461014,1734271854898,-500.0,0.00028493,7]
[345461015,1734271854907,-500.0,0.00028493,7]
[345461016,1734271854916,-500.0,0.00028493,7]
[345461017,1734271854926,-1126.56,0.00028493,7]
[345461018,1734271854935,-161.20499035,0.00028497,5]
[345461019,1734271854944,-244459.37949224,0.00028499,2]
[345461020,1734271854954,-218.58253566,0.00028499,10]
[345461021,1734271854963,-398920.7048818,0.000285,2]
[345461022,1734271854973,-5025.05587689,0.000285,7]
[345461023,1734271854983,-1004290.77673018,0.000285,2]
[345461024,1734271854994,-1555.59794542,0.000285,7]
[345461025,1734271855003,-131028.4859686,0.000285,2]
[345461026,1734271855013,-151.252,0.000285,2]
[345461027,1734271855022,-151.0,0.000285,2]
[345461028,1734271855031,-579.44,0.000285,30]
[345461029,1734271855040,-15021.91,0.000285,2]
[345461030,1734271855050,-5244.76788379,0.000285,2]
[345461031,1734271855059,-2000.0,0.000285,2]
[345461032,1734271855068,-1100.03,0.000285,2]
[345461033,1734271855077,-2500.0,0.000285,3]
[345461034,1734271855087,-2500.0,0.000285,3]
[345461035,1734271855095,-346.63798172,0.000285,10]
[345461036,1734271855104,-2500.0,0.000285,3]
[345461037,1734271855114,-300.0,0.000285,13]
[345461038,1734271855124,-154.4,0.000285,7]
[345461039,1734271855133,-151.0,0.000285,7]
[345461040,1734271855143,-2500.0,0.000285,3]
[345461041,1734271855152,-780.35843012,0.000285,30]
[345461042,1734271855162,-500.0,0.000285,30]
[345461043,1734271855171,-500.0,0.000285,30]
[345461044,1734271855180,-500.0,0.000285,30]
[345461045,1734271855190,-500.0,0.000285,30]
[345461046,1734271855199,-500.0,0.000285,30]
[345461047,1734271855209,-500.0,0.000285,30]
[345461048,1734271855218,-500.0,0.000285,30]
[345461049,1734271855227,-500.0,0.000285,30]
[345461050,1734271855237,-500.0,0.000285,30]
[345461051,1734271855248,-500.0,0.000285,30]
[345461052,1734271855260,-500.0,0.000285,30]
[345461053,1734271855270,-500.0,0.000285,30]
[345461054,1734271855280,-500.0,0.000285,30]
[345461055,1734271855291,-500.0,0.000285,30]
[345461056,1734271855301,-500.0,0.000285,30]
[345461057,1734271855311,-500.0,0.000285,30]
[345461058,1734271855321,-500.0,0.000285,30]
[345461059,1734271855331,-500.0,0.000285,30]
[345461060,1734271855341,-500.0,0.000285,30]
[345461061,1734271855350,-500.0,0.000285,30]
[345461062,1734271855360,-500.0,0.000285,30]
[345461063,1734271855370,-500.0,0.000285,30]
[345461064,1734271855379,-402.03166484,0.000285,30]
[345461065,1734271855389,-500.0,0.000285,30]
[345461066,1734271855399,-500.0,0.000285,30]
[345461067,1734271855408,-500.0,0.000285,30]
[345461068,1734271855418,-500.0,0.000285,30]
[345461069,1734271855427,-500.0,0.000285,30]
[345461070,1734271855436,-500.0,0.000285,30]
[345461071,1734271855503,-154.38941801,0.00028575,2]
[345461072,1734271855514,-965.52739142,0.00028633,2]
[345461073,1734271855524,-314.20523415,0.00028649,2]
[345461074,1734271855533,-500.0,0.00028767,7]
[345461075,1734271855544,-262.83405391,0.00028767,7]
[345461076,1734271855555,-500.0,0.00028767,7]
[345461077,1734271855565,-150.68356413,0.00028767,7]
[345461078,1734271855574,-669.68195214,0.00028767,7]
[345461079,1734271855583,-500.0,0.00028767,7]
[345461080,1734271855592,-500.0,0.00028767,7]
[345461081,1734271855601,-500.0,0.00028767,7]
[345461082,1734271855610,-173.20062675,0.00028767,7]
[345461083,1734271855620,-500.0,0.00028767,7]
[345461084,1734271855629,-171.08508352,0.00028767,7]
[345461085,1734271855638,-154.67615688,0.00028767,7]
[345461086,1734271855648,-500.0,0.00028767,7]
[345461087,1734271855657,-500.0,0.00028767,7]
[345461088,1734271855666,-500.0,0.00028767,7]
[345461089,1734271855675,-500.0,0.00028767,9]
[345461090,1734271855684,-500.0,0.00028767,7]
[345461091,1734271855693,-506.50975542,0.00028767,7]
[345461092,1734271855703,-500.0,0.00028767,7]
[345461093,1734271855712,-500.0,0.00028767,7]
[345461094,1734271855721,-500.0,0.00028767,7]
[345461095,1734271855730,-500.0,0.00028767,7]
[345461096,1734271855740,-358.02669912,0.00028767,7]
[345461097,1734271855750,-602.05,0.00028767,7]
[345461098,1734271855759,-500.0,0.00028767,7]
[345461099,1734271855768,-500.0,0.00028767,7]
[345461100,1734271855777,-500.0,0.00028767,7]
[345461101,1734271855786,-500.0,0.00028767,7]
[345461102,1734271855795,-500.0,0.00028767,7]
[345461103,1734271855804,-500.0,0.00028767,7]
[345461104,1734271855814,-500.0,0.00028767,7]
[345461105,1734271855823,-500.0,0.00028767,7]
[345461106,1734271855832,-14591.19,0.00028767,2]
[345461107,1734271855842,-500.0,0.00028767,7]
[345461108,1734271855851,-500.0,0.00028767,7]
[345461109,1734271855860,-500.0,0.00028767,7]
[345461110,1734271855869,-500.0,0.00028767,7]
[345461111,1734271855879,-586.40335744,0.00028767,7]
[345461112,1734271855889,-500.0,0.00028767,7]
[345461113,1734271855898,-500.0,0.00028767,7]
[345461114,1734271855908,-500.0,0.00028767,7]
[345461115,1734271855925,-500.0,0.00028767,7]
[345461116,1734271855942,-500.0,0.00028767,7]
[345461117,1734271855959,-500.0,0.00028767,7]
[345461118,1734271855978,-469.26731939,0.00028767,7]
[345461119,1734271856004,-500.0,0.00028767,7]
[345461120,1734271856021,-500.0,0.00028767,7]
[345461121,1734271856040,-500.0,0.00028767,7]
[345461122,1734271856054,-500.0,0.00028767,7]
[345461123,1734271856071,-500.0,0.00028767,7]
[345461124,1734271856090,-2516.55,0.00028767,2]
[345461125,1734271856109,-500.0,0.00028767,7]
[345461126,1734271856123,-500.0,0.00028767,7]
[345461127,1734271856142,-500.0,0.00028767,7]
[345461128,1734271856157,-500.0,0.00028767,7]
[345461129,1734271856172,-500.0,0.00028767,7]
[345461130,1734271856186,-500.0,0.00028767,7]
[345461131,1734271856200,-500.0,0.00028767,7]
[345461132,1734271856214,-500.0,0.00028767,7]
[345461133,1734271856229,-500.0,0.00028767,7]
[345461134,1734271856246,-500.0,0.00028767,7]
[345461135,1734271856266,-492.19957759,0.00028767,7]
[345461136,1734271856281,-500.0,0.00028767,7]
[345461137,1734271856297,-500.0,0.00028767,7]
[345461138,1734271856313,-500.0,0.00028767,7]
[345461139,1734271856329,-500.0,0.00028767,7]
[345461140,1734271856345,-500.0,0.00028767,7]
[345461141,1734271856359,-617.22882386,0.00028767,7]
[345461142,1734271856374,-500.0,0.00028767,7]
[345461143,1734271856388,-500.0,0.00028767,7]
[345461144,1734271856403,-479.0,0.00028767,7]
[345461145,1734271856419,-242.20279301,0.00028767,7]
[345461146,1734271856433,-500.0,0.00028767,7]
[345461147,1734271856448,-266.11362495,0.00028767,7]
[345461148,1734271856462,-500.0,0.00028767,7]
[345461149,1734271856476,-1439.76,0.00028767,7]
[345461150,1734271856490,-500.0,0.00028767,7]
[345461151,1734271856504,-500.0,0.00028767,7]
[345461152,1734271856519,-500.0,0.00028767,7]
[345461153,1734271856533,-864.77,0.00028767,7]
[345461154,1734271856548,-500.0,0.00028767,7]
[345461155,1734271856562,-500.0,0.00028767,7]
[345461156,1734271856577,-500.0,0.00028767,7]
[345461157,1734271856592,-686.05,0.00028767,7]
[345461158,1734271856606,-500.0,0.00028767,7]
[345461159,1734271856696,-444.14224186,0.00028767,7]
[345461160,1734271856707,-516.14751373,0.00028767,7]
[345461161,1734271856716,-500.0,0.00028767,7]
[345461162,1734271856725,-533.71,0.00028767,7]
[345461163,1734271856735,-500.0,0.00028767,7]
[345461164,1734271856746,-359.373219,0.00028767,7]
[345461165,1734271856756,-500.0,0.00028767,7]
[345461166,1734271856765,-500.0,0.00028767,7]
[345461167,1734271856775,-565.12,0.00028767,7]
[345461168,1734271856786,-2534.09,0.00028767,7]
[345461169,1734271856795,-500.0,0.00028767,7]
[345461170,1734271856805,-1025.35,0.00028767,7]
[345461171,1734271856815,-500.0,0.00028767,7]
[345461172,1734271856825,-500.0,0.00028767,7]
[345461173,1734271856835,-1126.56,0.00028767,7]
[345461174,1734271856844,-152.73,0.000288,31]
[345461175,1734271856853,-152.73,0.000288,31]
[345461176,1734271856862,-152.73,0.000288,31]
[345461177,1734271856872,-152.73,0.000288,31]
[345461178,1734271856881,-152.73,0.000288,31]
[345461179,1734271856890,-152.73,0.000288,31]
[345461180,1734271856899,-152.73,0.000288,31]
[345461181,1734271856909,-152.73,0.000288,31]
[345461182,1734271856918,-152.73,0.000288,31]
[345461183,1734271856928,-152.73,0.000288,31]
[345461184,1734271856937,-152.73,0.000288,31]
[345461185,1734271856947,-152.73,0.000288,31]
[345461186,1734271856957,-152.73,0.000288,31]
[345461187,1734271856967,-152.73,0.000288,31]
[345461188,1734271856976,-152.73,0.000288,31]
[345461189,1734271856986,-152.73,0.000288,31]
[345461190,1734271856996,-152.73,0.000288,31]
[345461191,1734271857006,-152.73,0.000288,31]
[345461192,1734271857015,-152.73,0.000288,31]
[345461193,1734271857025,-152.73,0.000288,31]
[345461194,1734271857034,-154.38941801,0.00028849,2]
[345461195,1734271857043,-965.52739142,0.00028899,2]
[345461196,1734271857053,-568.459,0.000289,30]
[345461197,1734271857062,-200.0,0.00029,120]
[345461198,1734271857072,-52243.95,0.00029,120]
[345461199,1734271857082,-303.14549832,0.00029,2]
[345461200,1734271857095,-612.69735624,0.00029041,7]
[345461201,1734271857106,-601.01956468,0.00029041,7]
[345461202,1734271857116,-500.0,0.00029041,7]
[345461203,1734271857126,-500.0,0.00029041,7]
[345461204,1734271857135,-500.0,0.00029041,7]
[345461205,1734271857144,-158.4298813,0.00029041,7]
[345461206,1734271857154,-500.0,0.00029041,7]
[345461207,1734271857163,-536.80674944,0.00029041,7]
[345461208,1734271857173,-500.0,0.00029041,7]
[345461209,1734271857182,-183.04,0.00029041,7]
[345461210,1734271857192,-500.0,0.00029041,7]
[345461211,1734271857202,-500.0,0.00029041,7]
[345461212,1734271857211,-500.0,0.00029041,7]
[345461213,1734271857224,-500.0,0.00029041,7]
[345461214,1734271857233,-602.05,0.00029041,7]
[345461215,1734271857245,-500.0,0.00029041,7]
[345461216,1734271857260,-500.0,0.00029041,7]
[345461217,1734271857269,-500.0,0.00029041,7]
[345461218,1734271857279,-500.0,0.00029041,7]
[345461219,1734271857288,-500.0,0.00029041,7]
[345461220,1734271857299,-341.7,0.00029041,7]
[345461221,1734271857308,-500.0,0.00029041,7]
[345461222,1734271857320,-14591.19,0.00029041,2]
[345461223,1734271857331,-500.0,0.00029041,7]
[345461224,1734271857341,-297.72827095,0.00029041,7]
[345461225,1734271857350,-500.0,0.00029041,7]
[345461226,1734271857360,-500.0,0.00029041,7]
[345461227,1734271857369,-500.0,0.00029041,7]
[345461228,1734271857380,-500.0,0.00029041,7]
[345461229,1734271857389,-500.0,0.00029041,7]
[345461230,1734271857398,-500.0,0.00029041,7]
[345461231,1734271857408,-500.0,0.00029041,7]
[345461232,1734271857418,-500.0,0.00029041,7]
[345461233,1734271857427,-200.88792151,0.00029041,7]
[345461234,1734271857437,-2516.55,0.00029041,2]
[345461235,1734271857446,-500.0,0.00029041,7]
[345461236,1734271857456,-500.0,0.00029041,7]
[345461237,1734271857466,-488.87,0.00029041,7]
[345461238,1734271857475,-500.0,0.00029041,7]
[345461239,1734271857484,-500.0,0.00029041,7]
[345461240,1734271857494,-500.0,0.00029041,7]
[345461241,1734271857504,-500.0,0.00029041,7]
[345461242,1734271857513,-500.0,0.00029041,7]
[345461243,1734271857523,-500.0,0.00029041,7]
[345461244,1734271857531,-500.0,0.00029041,7]
[345461245,1734271857541,-500.0,0.00029041,7]
[345461246,1734271857551,-500.0,0.00029041,7]
[345461247,1734271857560,-500.0,0.00029041,7]
[345461248,1734271857570,-500.0,0.00029041,7]
[345461249,1734271857580,-500.0,0.00029041,7]
[345461250,1734271857590,-456.96,0.00029041,7]
[345461251,1734271857599,-1439.76,0.00029041,7]
[345461252,1734271857609,-500.0,0.00029041,7]
[345461253,1734271857618,-156.61311114,0.00029041,7]
[345461254,1734271857628,-864.77,0.00029041,7]
[345461255,1734271857638,-569.96360015,0.00029041,7]
[345461256,1734271857647,-500.0,0.00029041,7]
[345461257,1734271857657,-500.0,0.00029041,7]
[345461258,1734271857667,-686.05,0.00029041,7]
[345461259,1734271857730,-500.0,0.00029041,7]
[345461260,1734271857742,-500.0,0.00029041,7]
[345461261,1734271857752,-500.0,0.00029041,7]
[345461262,1734271857761,-565.12,0.00029041,7]
[345461263,1734271857770,-2534.09,0.00029041,7]
[345461264,1734271857779,-500.0,0.00029041,7]
[345461265,1734271857789,-1025.35,0.00029041,7]
[345461266,1734271857799,-471.17392971,0.00029041,7]
[345461267,1734271857811,-1126.56,0.00029041,7]
[345461268,1734271857820,-314.20523415,0.00029086,2]
[345461269,1734271857829,-154.599999,0.000291,2]
[345461270,1734271857839,-965.52739142,0.00029164,2]
[345461271,1734271857849,-639.16,0.000292,30]
[345461272,1734271857858,-300.0,0.000292,2]
[345461273,1734271857867,-152.73,0.000292,31]
[345461274,1734271857877,-152.73,0.000292,31]
[345461275,1734271857886,-152.73,0.000292,31]
[345461276,1734271857896,-152.73,0.000292,31]
[345461277,1734271857905,-152.73,0.000292,31]
[345461278,1734271857915,-152.73,0.000292,31]
[345461279,1734271857924,-152.73,0.000292,31]
[345461280,1734271857934,-152.73,0.000292,31]
[345461281,1734271857943,-152.73,0.000292,31]
[345461282,1734271857953,-152.73,0.000292,31]
[345461283,1734271857962,-152.73,0.000292,31]
[345461284,1734271857972,-152.73,0.000292,31]
[345461285,1734271857981,-152.73,0.000292,31]
[345461286,1734271857992,-152.73,0.000292,31]
[345461287,1734271858002,-152.73,0.000292,31]
[345461289,1734271858011,-152.73,0.000292,31]
[345461290,1734271858021,-152.73,0.000292,31]
[345461291,1734271858031,-152.73,0.000292,31]
[345461292,1734271858040,-152.73,0.000292,31]
[345461293,1734271858050,-152.73,0.000292,31]
[345461294,1734271858060,-303.14549832,0.0002929,2]
[345461295,1734271858069,-500.0,0.00029315,7]
[345461296,1734271858079,-500.0,0.00029315,7]
[345461297,1734271858088,-500.0,0.00029315,7]
[345461298,1734271858099,-500.0,0.00029315,7]
[345461299,1734271858108,-500.0,0.00029315,7]
[345461300,1734271858118,-424.61,0.00029315,7]
[345461301,1734271858127,-500.0,0.00029315,7]
[345461302,1734271858137,-500.0,0.00029315,7]
[345461303,1734271858147,-500.0,0.00029315,7]
[345461304,1734271858156,-602.05,0.00029315,7]
[345461305,1734271858166,-500.0,0.00029315,7]
[345461306,1734271858175,-500.0,0.00029315,7]
[345461307,1734271858185,-500.0,0.00029315,7]
[345461308,1734271858195,-500.0,0.00029315,7]
[345461309,1734271858208,-500.0,0.00029315,7]
[345461310,1734271858218,-14591.19,0.00029315,2]
[345461311,1734271858227,-261.86689118,0.00029315,7]
[345461312,1734271858236,-500.0,0.00029315,7]
[345461313,1734271858246,-500.0,0.00029315,7]
[345461314,1734271858259,-500.0,0.00029315,7]
[345461315,1734271858268,-500.0,0.00029315,7]
[345461316,1734271858278,-500.0,0.00029315,7]
[345461317,1734271858287,-500.0,0.00029315,7]
[345461318,1734271858298,-500.0,0.00029315,7]
[345461319,1734271858308,-399.83714725,0.00029315,7]
[345461320,1734271858318,-2516.55,0.00029315,2]
[345461321,1734271858328,-217.14320592,0.00029315,7]
[345461322,1734271858338,-500.0,0.00029315,7]
[345461323,1734271858347,-500.0,0.00029315,7]
[345461324,1734271858356,-500.0,0.00029315,7]
[345461325,1734271858366,-500.0,0.00029315,7]
[345461326,1734271858376,-500.0,0.00029315,7]
[345461327,1734271858385,-295.65846032,0.00029315,7]
[345461328,1734271858394,-500.0,0.00029315,7]
[345461329,1734271858403,-500.0,0.00029315,7]
[345461330,1734271858413,-202.56929211,0.00029315,7]
[345461331,1734271858423,-247.67821161,0.00029315,7]
[345461332,1734271858433,-500.0,0.00029315,7]
[345461333,1734271858442,-1439.76,0.00029315,7]
[345461334,1734271858453,-500.0,0.00029315,7]
[345461335,1734271858463,-864.77,0.00029315,7]
[345461336,1734271858472,-622.77401573,0.00029315,7]
[345461337,1734271858482,-500.0,0.00029315,7]
[345461338,1734271858493,-686.05,0.00029315,7]